{"text_format":"1","workbook":"xlsx","n_sheets":3,"sheets":["Codification","Synthèse Hebdo","Saisie Planning Production"],"not_rendered":{"charts":0,"images":4,"macros":1,"external_links":0,"defined_names":23,"comments":0,"pivot_tables":0},"unopened":[],"bounds":{"document_bytes":16777216,"sheet_cells":100000,"rows_first":2000,"rows_last":500,"rows_between":2000,"halvings":0,"cell_chars":16384,"cell_head_chars":4096},"cells_cut":0,"cells_raw":0,"read":"whole","date_system":"1900"}

{"sheet":"Codification","index":0,"n_rows":63,"n_cols":25,"rows_kept":63,"cut":false,"hidden":false,"merged":[[2,20,2,21],[2,22,2,23],[2,24,2,25]]}
[null,null,null,null,null,null,null,{"$f":"TODAY()","v":"2016-04-07"},null,null,null,null,null,null,null,{"$f":"Q1&R1","v":{"$error":"#N/A"}},{"$f":"IF($R$5=\"Mens\",VLOOKUP($S$5,$T$5:$Z$63,2,0),IF(R5=\"Hebdo\",VLOOKUP($S$5,$T$5:$Z$63,4,0),VLOOKUP($S$5,$T$5:$Z$63,6,0)))","v":{"$error":"#N/A"}},{"$f":"IF($R$5=\"Mens\",VLOOKUP($S$5,$T$5:$Z$63,3,0),IF(S5=\"Hebdo\",VLOOKUP($S$5,$T$5:$Z$63,5,0),VLOOKUP($S$5,$T$5:$Z$63,7,0)))","v":{"$error":"#N/A"}}]
[]
[null,null,null,null,null,null,null,null,null,null,null,null,null,null,null,null,null,null,null,null,"Synthèse Mens",null,"Synthèse Hebdo",null,"Planning"]
[null,"Code_Rech","Code","Libellé"]
[null,{"$f":"LEFT(C5,2)","v":"LM"},"LM - NomChantier","Machin",null,null,null,null,null,null,null,null,null,null,null,null,null,"Mens","Trimestre 1","Janvier","SM","_01"]
[null,{"$f":"LEFT(C6,2)","v":"LL"},"LL - NomChantier","Bidule",null,null,null,null,null,null,null,null,null,null,null,null,null,null,null,"Février","SM","_02"]
[null,"SL","SL - NomChantier","Truc",null,null,null,null,null,null,null,null,null,null,null,null,null,null,null,"Mars","SM","_03"]
[null,"PF","PF - NomChantier","Chose",null,null,null,null,null,null,null,null,null,null,null,null,null,null,null,"Avril","SM","_04"]
[null,"PM","PM - NomChantier","Raoul",null,null,null,null,null,null,null,null,null,null,null,null,null,null,null,"Mai","SM","_05"]
[null,"BV","BV - NomChantier","Bignouf",null,null,null,null,null,null,null,null,null,null,null,null,null,null,null,"Juin","SM","_06"]
[null,null,null,null,null,null,null,null,null,null,null,null,null,null,null,null,null,null,null,"Année"]
[null,null,null,null,null,null,null,null,null,null,null,null,null,null,null,null,null,null,null,"Semaine 1"]
[null,null,null,null,null,null,null,null,null,null,null,null,null,null,null,null,null,null,null,"Semaine 2"]
[null,null,null,null,null,null,null,null,null,null,null,null,null,null,null,null,null,null,null,"Semaine 3"]
[null,null,null,null,null,null,null,null,null,null,null,null,null,null,null,null,null,null,null,"Semaine 4"]
[null,null,null,null,null,null,null,null,null,null,null,null,null,null,null,null,null,null,null,"Semaine 5"]
[null,null,null,null,null,null,null,null,null,null,null,null,null,null,null,null,null,null,null,"Semaine 6"]
[null,null,null,null,null,null,null,null,null,null,null,null,null,null,null,null,null,null,null,"Semaine 7"]
[null,null,null,null,null,null,null,null,null,null,null,null,null,null,null,null,null,null,null,"Semaine 8"]
[null,null,null,null,null,null,null,null,null,null,null,null,null,null,null,null,null,null,null,"Semaine 9"]
[null,null,null,null,null,null,null,null,null,null,null,null,null,null,null,null,null,null,null,"Semaine 10"]
[null,null,null,null,null,null,null,null,null,null,null,null,null,null,null,null,null,null,null,"Semaine 11"]
[null,null,null,null,null,null,null,null,null,null,null,null,null,null,null,null,null,null,null,"Semaine 12"]
[null,null,null,null,null,null,null,null,null,null,null,null,null,null,null,null,null,null,null,"Semaine 13"]
[null,null,null,null,null,null,null,null,null,null,null,null,null,null,null,null,null,null,null,"Semaine 14"]
[null,null,null,null,null,null,null,null,null,null,null,null,null,null,null,null,null,null,null,"Semaine 15"]
[null,null,null,null,null,null,null,null,null,null,null,null,null,null,null,null,null,null,null,"Semaine 16"]
[null,null,null,null,null,null,null,null,null,null,null,null,null,null,null,null,null,null,null,"Semaine 17"]
[null,null,null,null,null,null,null,null,null,null,null,null,null,null,null,null,null,null,null,"Semaine 18"]
[null,null,null,null,null,null,null,null,null,null,null,null,null,null,null,null,null,null,null,"Semaine 19"]
[null,null,null,null,null,null,null,null,null,null,null,null,null,null,null,null,null,null,null,"Semaine 20"]
[null,null,null,null,null,null,null,null,null,null,null,null,null,null,null,null,null,null,null,"Semaine 21"]
[null,null,null,null,null,null,null,null,null,null,null,null,null,null,null,null,null,null,null,"Semaine 22"]
[null,null,null,null,null,null,null,null,null,null,null,null,null,null,null,null,null,null,null,"Semaine 23"]
[null,null,null,null,null,null,null,null,null,null,null,null,null,null,null,null,null,null,null,"Semaine 24"]
[null,null,null,null,null,null,null,null,null,null,null,null,null,null,null,null,null,null,null,"Semaine 25"]
[null,null,null,null,null,null,null,null,null,null,null,null,null,null,null,null,null,null,null,"Semaine 26"]
[null,null,null,null,null,null,null,null,null,null,null,null,null,null,null,null,null,null,null,"Semaine 27"]
[null,null,null,null,null,null,null,null,null,null,null,null,null,null,null,null,null,null,null,"Semaine 28"]
[null,null,null,null,null,null,null,null,null,null,null,null,null,null,null,null,null,null,null,"Semaine 29"]
[null,null,null,null,null,null,null,null,null,null,null,null,null,null,null,null,null,null,null,"Semaine 30"]
[null,null,null,null,null,null,null,null,null,null,null,null,null,null,null,null,null,null,null,"Semaine 31"]
[null,null,null,null,null,null,null,null,null,null,null,null,null,null,null,null,null,null,null,"Semaine 32"]
[null,null,null,null,null,null,null,null,null,null,null,null,null,null,null,null,null,null,null,"Semaine 33"]
[null,null,null,null,null,null,null,null,null,null,null,null,null,null,null,null,null,null,null,"Semaine 34"]
[null,null,null,null,null,null,null,null,null,null,null,null,null,null,null,null,null,null,null,"Semaine 35"]
[null,null,null,null,null,null,null,null,null,null,null,null,null,null,null,null,null,null,null,"Semaine 36"]
[null,null,null,null,null,null,null,null,null,null,null,null,null,null,null,null,null,null,null,"Semaine 37"]
[null,null,null,null,null,null,null,null,null,null,null,null,null,null,null,null,null,null,null,"Semaine 38"]
[null,null,null,null,null,null,null,null,null,null,null,null,null,null,null,null,null,null,null,"Semaine 39"]
[null,null,null,null,null,null,null,null,null,null,null,null,null,null,null,null,null,null,null,"Semaine 40"]
[null,null,null,null,null,null,null,null,null,null,null,null,null,null,null,null,null,null,null,"Semaine 41"]
[null,null,null,null,null,null,null,null,null,null,null,null,null,null,null,null,null,null,null,"Semaine 42"]
[null,null,null,null,null,null,null,null,null,null,null,null,null,null,null,null,null,null,null,"Semaine 43"]
[null,null,null,null,null,null,null,null,null,null,null,null,null,null,null,null,null,null,null,"Semaine 44"]
[null,null,null,null,null,null,null,null,null,null,null,null,null,null,null,null,null,null,null,"Semaine 45"]
[null,null,null,null,null,null,null,null,null,null,null,null,null,null,null,null,null,null,null,"Semaine 46"]
[null,null,null,null,null,null,null,null,null,null,null,null,null,null,null,null,null,null,null,"Semaine 47"]
[null,null,null,null,null,null,null,null,null,null,null,null,null,null,null,null,null,null,null,"Semaine 48"]
[null,null,null,null,null,null,null,null,null,null,null,null,null,null,null,null,null,null,null,"Semaine 49"]
[null,null,null,null,null,null,null,null,null,null,null,null,null,null,null,null,null,null,null,"Semaine 50"]
[null,null,null,null,null,null,null,null,null,null,null,null,null,null,null,null,null,null,null,"Semaine 51"]
[null,null,null,null,null,null,null,null,null,null,null,null,null,null,null,null,null,null,null,"Semaine 52"]

{"sheet":"Synthèse Hebdo","index":1,"n_rows":11,"n_cols":55,"rows_kept":11,"cut":false,"hidden":false,"merged":[[1,33,1,36],[1,37,1,41],[1,42,1,45],[1,46,1,49],[1,50,1,54],[1,29,1,32],[1,3,1,6],[5,1,10,1],[1,7,1,10],[1,11,1,15],[1,16,1,19],[1,20,1,23],[1,24,1,28]]}
[]
[{"$f":"WEEKNUM(A3)-1","v":14},null,"Synthèse Planning par semaine","Janvier",null,null,null,"Février",null,null,null,"Mars",null,null,null,null,"Avril",null,null,null,"Mai",null,null,null,"Juin",null,null,null,null,"Juillet",null,null,null,"Août",null,null,null,"Septembre",null,null,null,null,"Octobre",null,null,null,"Novembre",null,null,null,"Décembre"]
[{"$f":"+Codification!H1","v":"2016-04-07"},null,"Affectation",1,2,3,4,5,6,7,8,9,10,11,12,13,14,15,16,17,18,19,20,21,22,23,24,25,26,27,28,29,30,31,32,33,34,35,36,37,38,39,40,41,42,43,44,45,46,47,48,49,50,51,52]
[null,null,"Du : ","2016-01-04",{"$f":"+D4+7","v":"2016-01-11"},{"$f":"+E4+7","v":"2016-01-18"},"2016-01-25","2016-02-01","2016-02-08","2016-02-15","2016-02-22","2016-02-29","2016-03-07","2016-03-14","2016-03-21","2016-03-28","2016-04-04","2016-04-11","2016-04-18","2016-04-25","2016-05-02","2016-05-09","2016-05-16","2016-05-23","2016-05-30","2016-06-06","2016-06-13","2016-06-20","2016-06-27","2016-07-04","2016-07-11","2016-07-18","2016-07-25","2016-08-01","2016-08-08","2016-08-15","2016-08-22","2016-08-29","2016-09-05","2016-09-12","2016-09-19","2016-09-26","2016-10-03","2016-10-10","2016-10-17","2016-10-24","2016-10-31","2016-11-07","2016-11-14","2016-11-21","2016-11-28","2016-12-05","2016-12-12","2016-12-19","2016-12-26"]
[null,null,"Au : ","2016-01-10",{"$f":"+D5+7","v":"2016-01-17"},{"$f":"+E5+7","v":"2016-01-24"},"2016-01-31","2016-02-07","2016-02-14","2016-02-21","2016-02-28","2016-03-06","2016-03-13","2016-03-20","2016-03-27","2016-04-03","2016-04-10","2016-04-17","2016-04-24","2016-05-01","2016-05-08","2016-05-15","2016-05-22","2016-05-29","2016-06-05","2016-06-12","2016-06-19","2016-06-26","2016-07-03","2016-07-10","2016-07-17","2016-07-24","2016-07-31","2016-08-07","2016-08-14","2016-08-21","2016-08-28","2016-09-04","2016-09-11","2016-09-18","2016-09-25","2016-10-02","2016-10-09","2016-10-16","2016-10-23","2016-10-30","2016-11-06","2016-11-13","2016-11-20","2016-11-27","2016-12-04","2016-12-11","2016-12-18","2016-12-25","2017-01-01"]
["LM",null,"Machin",{"$f":"COUNTIF('Saisie Planning Production'!$L$6:$L$69,\"=LM\")","v":9},{"$f":"COUNTIF('Saisie Planning Production'!#REF!,\"=LM\")","v":{"$error":"#REF!"}},{"$f":"COUNTIF('Saisie Planning Production'!#REF!,\"=LM\")","v":{"$error":"#REF!"}},{"$f":"COUNTIF('Saisie Planning Production'!#REF!,\"=LM\")","v":{"$error":"#REF!"}},{"$f":"COUNTIF('Saisie Planning Production'!#REF!,\"=LM\")","v":{"$error":"#REF!"}},{"$f":"COUNTIF('Saisie Planning Production'!#REF!,\"=LM\")","v":{"$error":"#REF!"}},{"$f":"COUNTIF('Saisie Planning Production'!#REF!,\"=LM\")","v":{"$error":"#REF!"}},{"$f":"COUNTIF('Saisie Planning Production'!#REF!,\"=LM\")","v":{"$error":"#REF!"}},{"$f":"COUNTIF('Saisie Planning Production'!#REF!,\"=LM\")","v":{"$error":"#REF!"}},{"$f":"COUNTIF('Saisie Planning Production'!#REF!,\"=LM\")","v":{"$error":"#REF!"}},{"$f":"COUNTIF('Saisie Planning Production'!#REF!,\"=LM\")","v":{"$error":"#REF!"}},{"$f":"COUNTIF('Saisie Planning Production'!#REF!,\"=LM\")","v":{"$error":"#REF!"}},{"$f":"COUNTIF('Saisie Planning Production'!#REF!,\"=LM\")","v":{"$error":"#REF!"}},{"$f":"COUNTIF('Saisie Planning Production'!#REF!,\"=LM\")","v":{"$error":"#REF!"}},{"$f":"COUNTIF('Saisie Planning Production'!#REF!,\"=LM\")","v":{"$error":"#REF!"}},{"$f":"COUNTIF('Saisie Planning Production'!#REF!,\"=LM\")","v":{"$error":"#REF!"}},{"$f":"COUNTIF('Saisie Planning Production'!#REF!,\"=LM\")","v":{"$error":"#REF!"}},{"$f":"COUNTIF('Saisie Planning Production'!#REF!,\"=LM\")","v":{"$error":"#REF!"}},{"$f":"COUNTIF('Saisie Planning Production'!#REF!,\"=LM\")","v":{"$error":"#REF!"}},{"$f":"COUNTIF('Saisie Planning Production'!#REF!,\"=LM\")","v":{"$error":"#REF!"}},{"$f":"COUNTIF('Saisie Planning Production'!#REF!,\"=LM\")","v":{"$error":"#REF!"}},{"$f":"COUNTIF('Saisie Planning Production'!#REF!,\"=LM\")","v":{"$error":"#REF!"}},{"$f":"COUNTIF('Saisie Planning Production'!#REF!,\"=LM\")","v":{"$error":"#REF!"}},{"$f":"COUNTIF('Saisie Planning Production'!#REF!,\"=LM\")","v":{"$error":"#REF!"}},{"$f":"COUNTIF('Saisie Planning Production'!#REF!,\"=LM\")","v":{"$error":"#REF!"}},{"$f":"COUNTIF('Saisie Planning Production'!#REF!,\"=LM\")","v":{"$error":"#REF!"}},{"$f":"COUNTIF('Saisie Planning Production'!#REF!,\"=LM\")","v":{"$error":"#REF!"}},{"$f":"COUNTIF('Saisie Planning Production'!#REF!,\"=LM\")","v":{"$error":"#REF!"}},{"$f":"COUNTIF('Saisie Planning Production'!#REF!,\"=LM\")","v":{"$error":"#REF!"}},{"$f":"COUNTIF('Saisie Planning Production'!#REF!,\"=LM\")","v":{"$error":"#REF!"}},{"$f":"COUNTIF('Saisie Planning Production'!#REF!,\"=LM\")","v":{"$error":"#REF!"}},{"$f":"COUNTIF('Saisie Planning Production'!#REF!,\"=LM\")","v":{"$error":"#REF!"}},{"$f":"COUNTIF('Saisie Planning Production'!#REF!,\"=LM\")","v":{"$error":"#REF!"}},{"$f":"COUNTIF('Saisie Planning Production'!#REF!,\"=LM\")","v":{"$error":"#REF!"}},{"$f":"COUNTIF('Saisie Planning Production'!#REF!,\"=LM\")","v":{"$error":"#REF!"}},{"$f":"COUNTIF('Saisie Planning Production'!#REF!,\"=LM\")","v":{"$error":"#REF!"}},{"$f":"COUNTIF('Saisie Planning Production'!#REF!,\"=LM\")","v":{"$error":"#REF!"}},{"$f":"COUNTIF('Saisie Planning Production'!#REF!,\"=LM\")","v":{"$error":"#REF!"}},{"$f":"COUNTIF('Saisie Planning Production'!#REF!,\"=LM\")","v":{"$error":"#REF!"}},{"$f":"COUNTIF('Saisie Planning Production'!#REF!,\"=LM\")","v":{"$error":"#REF!"}},{"$f":"COUNTIF('Saisie Planning Production'!#REF!,\"=LM\")","v":{"$error":"#REF!"}},{"$f":"COUNTIF('Saisie Planning Production'!#REF!,\"=LM\")","v":{"$error":"#REF!"}},{"$f":"COUNTIF('Saisie Planning Production'!#REF!,\"=LM\")","v":{"$error":"#REF!"}},{"$f":"COUNTIF('Saisie Planning Production'!#REF!,\"=LM\")","v":{"$error":"#REF!"}},{"$f":"COUNTIF('Saisie Planning Production'!#REF!,\"=LM\")","v":{"$error":"#REF!"}},{"$f":"COUNTIF('Saisie Planning Production'!#REF!,\"=LM\")","v":{"$error":"#REF!"}},{"$f":"COUNTIF('Saisie Planning Production'!#REF!,\"=LM\")","v":{"$error":"#REF!"}},{"$f":"COUNTIF('Saisie Planning Production'!#REF!,\"=LM\")","v":{"$error":"#REF!"}},{"$f":"COUNTIF('Saisie Planning Production'!#REF!,\"=LM\")","v":{"$error":"#REF!"}},{"$f":"COUNTIF('Saisie Planning Production'!#REF!,\"=LM\")","v":{"$error":"#REF!"}},{"$f":"COUNTIF('Saisie Planning Production'!#REF!,\"=LM\")","v":{"$error":"#REF!"}},{"$f":"COUNTIF('Saisie Planning Production'!#REF!,\"=LM\")","v":{"$error":"#REF!"}}]
["LL",null,"Bidule",{"$f":"COUNTIF('Saisie Planning Production'!$L$6:$L$69,\"=ll\")","v":2},{"$f":"COUNTIF('Saisie Planning Production'!#REF!,\"=ll\")","v":{"$error":"#REF!"}},{"$f":"COUNTIF('Saisie Planning Production'!#REF!,\"=ll\")","v":{"$error":"#REF!"}},{"$f":"COUNTIF('Saisie Planning Production'!#REF!,\"=ll\")","v":{"$error":"#REF!"}},{"$f":"COUNTIF('Saisie Planning Production'!#REF!,\"=ll\")","v":{"$error":"#REF!"}},{"$f":"COUNTIF('Saisie Planning Production'!#REF!,\"=ll\")","v":{"$error":"#REF!"}},{"$f":"COUNTIF('Saisie Planning Production'!#REF!,\"=ll\")","v":{"$error":"#REF!"}},{"$f":"COUNTIF('Saisie Planning Production'!#REF!,\"=ll\")","v":{"$error":"#REF!"}},{"$f":"COUNTIF('Saisie Planning Production'!#REF!,\"=ll\")","v":{"$error":"#REF!"}},{"$f":"COUNTIF('Saisie Planning Production'!#REF!,\"=ll\")","v":{"$error":"#REF!"}},{"$f":"COUNTIF('Saisie Planning Production'!#REF!,\"=ll\")","v":{"$error":"#REF!"}},{"$f":"COUNTIF('Saisie Planning Production'!#REF!,\"=ll\")","v":{"$error":"#REF!"}},{"$f":"COUNTIF('Saisie Planning Production'!#REF!,\"=ll\")","v":{"$error":"#REF!"}},{"$f":"COUNTIF('Saisie Planning Production'!#REF!,\"=ll\")","v":{"$error":"#REF!"}},{"$f":"COUNTIF('Saisie Planning Production'!#REF!,\"=ll\")","v":{"$error":"#REF!"}},{"$f":"COUNTIF('Saisie Planning Production'!#REF!,\"=ll\")","v":{"$error":"#REF!"}},{"$f":"COUNTIF('Saisie Planning Production'!#REF!,\"=ll\")","v":{"$error":"#REF!"}},{"$f":"COUNTIF('Saisie Planning Production'!#REF!,\"=ll\")","v":{"$error":"#REF!"}},{"$f":"COUNTIF('Saisie Planning Production'!#REF!,\"=ll\")","v":{"$error":"#REF!"}},{"$f":"COUNTIF('Saisie Planning Production'!#REF!,\"=ll\")","v":{"$error":"#REF!"}},{"$f":"COUNTIF('Saisie Planning Production'!#REF!,\"=ll\")","v":{"$error":"#REF!"}},{"$f":"COUNTIF('Saisie Planning Production'!#REF!,\"=ll\")","v":{"$error":"#REF!"}},{"$f":"COUNTIF('Saisie Planning Production'!#REF!,\"=ll\")","v":{"$error":"#REF!"}},{"$f":"COUNTIF('Saisie Planning Production'!#REF!,\"=ll\")","v":{"$error":"#REF!"}},{"$f":"COUNTIF('Saisie Planning Production'!#REF!,\"=ll\")","v":{"$error":"#REF!"}},{"$f":"COUNTIF('Saisie Planning Production'!#REF!,\"=ll\")","v":{"$error":"#REF!"}},{"$f":"COUNTIF('Saisie Planning Production'!#REF!,\"=ll\")","v":{"$error":"#REF!"}},{"$f":"COUNTIF('Saisie Planning Production'!#REF!,\"=ll\")","v":{"$error":"#REF!"}},{"$f":"COUNTIF('Saisie Planning Production'!#REF!,\"=ll\")","v":{"$error":"#REF!"}},{"$f":"COUNTIF('Saisie Planning Production'!#REF!,\"=ll\")","v":{"$error":"#REF!"}},{"$f":"COUNTIF('Saisie Planning Production'!#REF!,\"=ll\")","v":{"$error":"#REF!"}},{"$f":"COUNTIF('Saisie Planning Production'!#REF!,\"=ll\")","v":{"$error":"#REF!"}},{"$f":"COUNTIF('Saisie Planning Production'!#REF!,\"=ll\")","v":{"$error":"#REF!"}},{"$f":"COUNTIF('Saisie Planning Production'!#REF!,\"=ll\")","v":{"$error":"#REF!"}},{"$f":"COUNTIF('Saisie Planning Production'!#REF!,\"=ll\")","v":{"$error":"#REF!"}},{"$f":"COUNTIF('Saisie Planning Production'!#REF!,\"=ll\")","v":{"$error":"#REF!"}},{"$f":"COUNTIF('Saisie Planning Production'!#REF!,\"=ll\")","v":{"$error":"#REF!"}},{"$f":"COUNTIF('Saisie Planning Production'!#REF!,\"=ll\")","v":{"$error":"#REF!"}},{"$f":"COUNTIF('Saisie Planning Production'!#REF!,\"=ll\")","v":{"$error":"#REF!"}},{"$f":"COUNTIF('Saisie Planning Production'!#REF!,\"=ll\")","v":{"$error":"#REF!"}},{"$f":"COUNTIF('Saisie Planning Production'!#REF!,\"=ll\")","v":{"$error":"#REF!"}},{"$f":"COUNTIF('Saisie Planning Production'!#REF!,\"=ll\")","v":{"$error":"#REF!"}},{"$f":"COUNTIF('Saisie Planning Production'!#REF!,\"=ll\")","v":{"$error":"#REF!"}},{"$f":"COUNTIF('Saisie Planning Production'!#REF!,\"=ll\")","v":{"$error":"#REF!"}},{"$f":"COUNTIF('Saisie Planning Production'!#REF!,\"=ll\")","v":{"$error":"#REF!"}},{"$f":"COUNTIF('Saisie Planning Production'!#REF!,\"=ll\")","v":{"$error":"#REF!"}},{"$f":"COUNTIF('Saisie Planning Production'!#REF!,\"=ll\")","v":{"$error":"#REF!"}},{"$f":"COUNTIF('Saisie Planning Production'!#REF!,\"=ll\")","v":{"$error":"#REF!"}},{"$f":"COUNTIF('Saisie Planning Production'!#REF!,\"=ll\")","v":{"$error":"#REF!"}},{"$f":"COUNTIF('Saisie Planning Production'!#REF!,\"=ll\")","v":{"$error":"#REF!"}},{"$f":"COUNTIF('Saisie Planning Production'!#REF!,\"=ll\")","v":{"$error":"#REF!"}},{"$f":"COUNTIF('Saisie Planning Production'!#REF!,\"=ll\")","v":{"$error":"#REF!"}}]
["SL",null,"Truc",{"$f":"COUNTIF('Saisie Planning Production'!$L$6:$L$69,\"=SL\")","v":5},{"$f":"COUNTIF('Saisie Planning Production'!#REF!,\"=SL\")","v":{"$error":"#REF!"}},{"$f":"COUNTIF('Saisie Planning Production'!#REF!,\"=SL\")","v":{"$error":"#REF!"}},{"$f":"COUNTIF('Saisie Planning Production'!#REF!,\"=SL\")","v":{"$error":"#REF!"}},{"$f":"COUNTIF('Saisie Planning Production'!#REF!,\"=SL\")","v":{"$error":"#REF!"}},{"$f":"COUNTIF('Saisie Planning Production'!#REF!,\"=SL\")","v":{"$error":"#REF!"}},{"$f":"COUNTIF('Saisie Planning Production'!#REF!,\"=SL\")","v":{"$error":"#REF!"}},{"$f":"COUNTIF('Saisie Planning Production'!#REF!,\"=SL\")","v":{"$error":"#REF!"}},{"$f":"COUNTIF('Saisie Planning Production'!#REF!,\"=SL\")","v":{"$error":"#REF!"}},{"$f":"COUNTIF('Saisie Planning Production'!#REF!,\"=SL\")","v":{"$error":"#REF!"}},{"$f":"COUNTIF('Saisie Planning Production'!#REF!,\"=SL\")","v":{"$error":"#REF!"}},{"$f":"COUNTIF('Saisie Planning Production'!#REF!,\"=SL\")","v":{"$error":"#REF!"}},{"$f":"COUNTIF('Saisie Planning Production'!#REF!,\"=SL\")","v":{"$error":"#REF!"}},{"$f":"COUNTIF('Saisie Planning Production'!#REF!,\"=SL\")","v":{"$error":"#REF!"}},{"$f":"COUNTIF('Saisie Planning Production'!#REF!,\"=SL\")","v":{"$error":"#REF!"}},{"$f":"COUNTIF('Saisie Planning Production'!#REF!,\"=SL\")","v":{"$error":"#REF!"}},{"$f":"COUNTIF('Saisie Planning Production'!#REF!,\"=SL\")","v":{"$error":"#REF!"}},{"$f":"COUNTIF('Saisie Planning Production'!#REF!,\"=SL\")","v":{"$error":"#REF!"}},{"$f":"COUNTIF('Saisie Planning Production'!#REF!,\"=SL\")","v":{"$error":"#REF!"}},{"$f":"COUNTIF('Saisie Planning Production'!#REF!,\"=SL\")","v":{"$error":"#REF!"}},{"$f":"COUNTIF('Saisie Planning Production'!#REF!,\"=SL\")","v":{"$error":"#REF!"}},{"$f":"COUNTIF('Saisie Planning Production'!#REF!,\"=SL\")","v":{"$error":"#REF!"}},{"$f":"COUNTIF('Saisie Planning Production'!#REF!,\"=SL\")","v":{"$error":"#REF!"}},{"$f":"COUNTIF('Saisie Planning Production'!#REF!,\"=SL\")","v":{"$error":"#REF!"}},{"$f":"COUNTIF('Saisie Planning Production'!#REF!,\"=SL\")","v":{"$error":"#REF!"}},{"$f":"COUNTIF('Saisie Planning Production'!#REF!,\"=SL\")","v":{"$error":"#REF!"}},{"$f":"COUNTIF('Saisie Planning Production'!#REF!,\"=SL\")","v":{"$error":"#REF!"}},{"$f":"COUNTIF('Saisie Planning Production'!#REF!,\"=SL\")","v":{"$error":"#REF!"}},{"$f":"COUNTIF('Saisie Planning Production'!#REF!,\"=SL\")","v":{"$error":"#REF!"}},{"$f":"COUNTIF('Saisie Planning Production'!#REF!,\"=SL\")","v":{"$error":"#REF!"}},{"$f":"COUNTIF('Saisie Planning Production'!#REF!,\"=SL\")","v":{"$error":"#REF!"}},{"$f":"COUNTIF('Saisie Planning Production'!#REF!,\"=SL\")","v":{"$error":"#REF!"}},{"$f":"COUNTIF('Saisie Planning Production'!#REF!,\"=SL\")","v":{"$error":"#REF!"}},{"$f":"COUNTIF('Saisie Planning Production'!#REF!,\"=SL\")","v":{"$error":"#REF!"}},{"$f":"COUNTIF('Saisie Planning Production'!#REF!,\"=SL\")","v":{"$error":"#REF!"}},{"$f":"COUNTIF('Saisie Planning Production'!#REF!,\"=SL\")","v":{"$error":"#REF!"}},{"$f":"COUNTIF('Saisie Planning Production'!#REF!,\"=SL\")","v":{"$error":"#REF!"}},{"$f":"COUNTIF('Saisie Planning Production'!#REF!,\"=SL\")","v":{"$error":"#REF!"}},{"$f":"COUNTIF('Saisie Planning Production'!#REF!,\"=SL\")","v":{"$error":"#REF!"}},{"$f":"COUNTIF('Saisie Planning Production'!#REF!,\"=SL\")","v":{"$error":"#REF!"}},{"$f":"COUNTIF('Saisie Planning Production'!#REF!,\"=SL\")","v":{"$error":"#REF!"}},{"$f":"COUNTIF('Saisie Planning Production'!#REF!,\"=SL\")","v":{"$error":"#REF!"}},{"$f":"COUNTIF('Saisie Planning Production'!#REF!,\"=SL\")","v":{"$error":"#REF!"}},{"$f":"COUNTIF('Saisie Planning Production'!#REF!,\"=SL\")","v":{"$error":"#REF!"}},{"$f":"COUNTIF('Saisie Planning Production'!#REF!,\"=SL\")","v":{"$error":"#REF!"}},{"$f":"COUNTIF('Saisie Planning Production'!#REF!,\"=SL\")","v":{"$error":"#REF!"}},{"$f":"COUNTIF('Saisie Planning Production'!#REF!,\"=SL\")","v":{"$error":"#REF!"}},{"$f":"COUNTIF('Saisie Planning Production'!#REF!,\"=SL\")","v":{"$error":"#REF!"}},{"$f":"COUNTIF('Saisie Planning Production'!#REF!,\"=SL\")","v":{"$error":"#REF!"}},{"$f":"COUNTIF('Saisie Planning Production'!#REF!,\"=SL\")","v":{"$error":"#REF!"}},{"$f":"COUNTIF('Saisie Planning Production'!#REF!,\"=SL\")","v":{"$error":"#REF!"}},{"$f":"COUNTIF('Saisie Planning Production'!#REF!,\"=SL\")","v":{"$error":"#REF!"}}]
["PF",null,"Chose",{"$f":"COUNTIF('Saisie Planning Production'!$L$6:$L$69,\"=PF\")","v":12},{"$f":"COUNTIF('Saisie Planning Production'!#REF!,\"=PF\")","v":{"$error":"#REF!"}},{"$f":"COUNTIF('Saisie Planning Production'!#REF!,\"=PF\")","v":{"$error":"#REF!"}},{"$f":"COUNTIF('Saisie Planning Production'!#REF!,\"=PF\")","v":{"$error":"#REF!"}},{"$f":"COUNTIF('Saisie Planning Production'!#REF!,\"=PF\")","v":{"$error":"#REF!"}},{"$f":"COUNTIF('Saisie Planning Production'!#REF!,\"=PF\")","v":{"$error":"#REF!"}},{"$f":"COUNTIF('Saisie Planning Production'!#REF!,\"=PF\")","v":{"$error":"#REF!"}},{"$f":"COUNTIF('Saisie Planning Production'!#REF!,\"=PF\")","v":{"$error":"#REF!"}},{"$f":"COUNTIF('Saisie Planning Production'!#REF!,\"=PF\")","v":{"$error":"#REF!"}},{"$f":"COUNTIF('Saisie Planning Production'!#REF!,\"=PF\")","v":{"$error":"#REF!"}},{"$f":"COUNTIF('Saisie Planning Production'!#REF!,\"=PF\")","v":{"$error":"#REF!"}},{"$f":"COUNTIF('Saisie Planning Production'!#REF!,\"=PF\")","v":{"$error":"#REF!"}},{"$f":"COUNTIF('Saisie Planning Production'!#REF!,\"=PF\")","v":{"$error":"#REF!"}},{"$f":"COUNTIF('Saisie Planning Production'!#REF!,\"=PF\")","v":{"$error":"#REF!"}},{"$f":"COUNTIF('Saisie Planning Production'!#REF!,\"=PF\")","v":{"$error":"#REF!"}},{"$f":"COUNTIF('Saisie Planning Production'!#REF!,\"=PF\")","v":{"$error":"#REF!"}},{"$f":"COUNTIF('Saisie Planning Production'!#REF!,\"=PF\")","v":{"$error":"#REF!"}},{"$f":"COUNTIF('Saisie Planning Production'!#REF!,\"=PF\")","v":{"$error":"#REF!"}},{"$f":"COUNTIF('Saisie Planning Production'!#REF!,\"=PF\")","v":{"$error":"#REF!"}},{"$f":"COUNTIF('Saisie Planning Production'!#REF!,\"=PF\")","v":{"$error":"#REF!"}},{"$f":"COUNTIF('Saisie Planning Production'!#REF!,\"=PF\")","v":{"$error":"#REF!"}},{"$f":"COUNTIF('Saisie Planning Production'!#REF!,\"=PF\")","v":{"$error":"#REF!"}},{"$f":"COUNTIF('Saisie Planning Production'!#REF!,\"=PF\")","v":{"$error":"#REF!"}},{"$f":"COUNTIF('Saisie Planning Production'!#REF!,\"=PF\")","v":{"$error":"#REF!"}},{"$f":"COUNTIF('Saisie Planning Production'!#REF!,\"=PF\")","v":{"$error":"#REF!"}},{"$f":"COUNTIF('Saisie Planning Production'!#REF!,\"=PF\")","v":{"$error":"#REF!"}},{"$f":"COUNTIF('Saisie Planning Production'!#REF!,\"=PF\")","v":{"$error":"#REF!"}},{"$f":"COUNTIF('Saisie Planning Production'!#REF!,\"=PF\")","v":{"$error":"#REF!"}},{"$f":"COUNTIF('Saisie Planning Production'!#REF!,\"=PF\")","v":{"$error":"#REF!"}},{"$f":"COUNTIF('Saisie Planning Production'!#REF!,\"=PF\")","v":{"$error":"#REF!"}},{"$f":"COUNTIF('Saisie Planning Production'!#REF!,\"=PF\")","v":{"$error":"#REF!"}},{"$f":"COUNTIF('Saisie Planning Production'!#REF!,\"=PF\")","v":{"$error":"#REF!"}},{"$f":"COUNTIF('Saisie Planning Production'!#REF!,\"=PF\")","v":{"$error":"#REF!"}},{"$f":"COUNTIF('Saisie Planning Production'!#REF!,\"=PF\")","v":{"$error":"#REF!"}},{"$f":"COUNTIF('Saisie Planning Production'!#REF!,\"=PF\")","v":{"$error":"#REF!"}},{"$f":"COUNTIF('Saisie Planning Production'!#REF!,\"=PF\")","v":{"$error":"#REF!"}},{"$f":"COUNTIF('Saisie Planning Production'!#REF!,\"=PF\")","v":{"$error":"#REF!"}},{"$f":"COUNTIF('Saisie Planning Production'!#REF!,\"=PF\")","v":{"$error":"#REF!"}},{"$f":"COUNTIF('Saisie Planning Production'!#REF!,\"=PF\")","v":{"$error":"#REF!"}},{"$f":"COUNTIF('Saisie Planning Production'!#REF!,\"=PF\")","v":{"$error":"#REF!"}},{"$f":"COUNTIF('Saisie Planning Production'!#REF!,\"=PF\")","v":{"$error":"#REF!"}},{"$f":"COUNTIF('Saisie Planning Production'!#REF!,\"=PF\")","v":{"$error":"#REF!"}},{"$f":"COUNTIF('Saisie Planning Production'!#REF!,\"=PF\")","v":{"$error":"#REF!"}},{"$f":"COUNTIF('Saisie Planning Production'!#REF!,\"=PF\")","v":{"$error":"#REF!"}},{"$f":"COUNTIF('Saisie Planning Production'!#REF!,\"=PF\")","v":{"$error":"#REF!"}},{"$f":"COUNTIF('Saisie Planning Production'!#REF!,\"=PF\")","v":{"$error":"#REF!"}},{"$f":"COUNTIF('Saisie Planning Production'!#REF!,\"=PF\")","v":{"$error":"#REF!"}},{"$f":"COUNTIF('Saisie Planning Production'!#REF!,\"=PF\")","v":{"$error":"#REF!"}},{"$f":"COUNTIF('Saisie Planning Production'!#REF!,\"=PF\")","v":{"$error":"#REF!"}},{"$f":"COUNTIF('Saisie Planning Production'!#REF!,\"=PF\")","v":{"$error":"#REF!"}},{"$f":"COUNTIF('Saisie Planning Production'!#REF!,\"=PF\")","v":{"$error":"#REF!"}},{"$f":"COUNTIF('Saisie Planning Production'!#REF!,\"=PF\")","v":{"$error":"#REF!"}}]
["PM",null,"Raoul",{"$f":"COUNTIF('Saisie Planning Production'!$L$6:$L$69,\"=PM\")","v":8},{"$f":"COUNTIF('Saisie Planning Production'!#REF!,\"=PM\")","v":{"$error":"#REF!"}},{"$f":"COUNTIF('Saisie Planning Production'!#REF!,\"=PM\")","v":{"$error":"#REF!"}},{"$f":"COUNTIF('Saisie Planning Production'!#REF!,\"=PM\")","v":{"$error":"#REF!"}},{"$f":"COUNTIF('Saisie Planning Production'!#REF!,\"=PM\")","v":{"$error":"#REF!"}},{"$f":"COUNTIF('Saisie Planning Production'!#REF!,\"=PM\")","v":{"$error":"#REF!"}},{"$f":"COUNTIF('Saisie Planning Production'!#REF!,\"=PM\")","v":{"$error":"#REF!"}},{"$f":"COUNTIF('Saisie Planning Production'!#REF!,\"=PM\")","v":{"$error":"#REF!"}},{"$f":"COUNTIF('Saisie Planning Production'!#REF!,\"=PM\")","v":{"$error":"#REF!"}},{"$f":"COUNTIF('Saisie Planning Production'!#REF!,\"=PM\")","v":{"$error":"#REF!"}},{"$f":"COUNTIF('Saisie Planning Production'!#REF!,\"=PM\")","v":{"$error":"#REF!"}},{"$f":"COUNTIF('Saisie Planning Production'!#REF!,\"=PM\")","v":{"$error":"#REF!"}},{"$f":"COUNTIF('Saisie Planning Production'!#REF!,\"=PM\")","v":{"$error":"#REF!"}},{"$f":"COUNTIF('Saisie Planning Production'!#REF!,\"=PM\")","v":{"$error":"#REF!"}},{"$f":"COUNTIF('Saisie Planning Production'!#REF!,\"=PM\")","v":{"$error":"#REF!"}},{"$f":"COUNTIF('Saisie Planning Production'!#REF!,\"=PM\")","v":{"$error":"#REF!"}},{"$f":"COUNTIF('Saisie Planning Production'!#REF!,\"=PM\")","v":{"$error":"#REF!"}},{"$f":"COUNTIF('Saisie Planning Production'!#REF!,\"=PM\")","v":{"$error":"#REF!"}},{"$f":"COUNTIF('Saisie Planning Production'!#REF!,\"=PM\")","v":{"$error":"#REF!"}},{"$f":"COUNTIF('Saisie Planning Production'!#REF!,\"=PM\")","v":{"$error":"#REF!"}},{"$f":"COUNTIF('Saisie Planning Production'!#REF!,\"=PM\")","v":{"$error":"#REF!"}},{"$f":"COUNTIF('Saisie Planning Production'!#REF!,\"=PM\")","v":{"$error":"#REF!"}},{"$f":"COUNTIF('Saisie Planning Production'!#REF!,\"=PM\")","v":{"$error":"#REF!"}},{"$f":"COUNTIF('Saisie Planning Production'!#REF!,\"=PM\")","v":{"$error":"#REF!"}},{"$f":"COUNTIF('Saisie Planning Production'!#REF!,\"=PM\")","v":{"$error":"#REF!"}},{"$f":"COUNTIF('Saisie Planning Production'!#REF!,\"=PM\")","v":{"$error":"#REF!"}},{"$f":"COUNTIF('Saisie Planning Production'!#REF!,\"=PM\")","v":{"$error":"#REF!"}},{"$f":"COUNTIF('Saisie Planning Production'!#REF!,\"=PM\")","v":{"$error":"#REF!"}},{"$f":"COUNTIF('Saisie Planning Production'!#REF!,\"=PM\")","v":{"$error":"#REF!"}},{"$f":"COUNTIF('Saisie Planning Production'!#REF!,\"=PM\")","v":{"$error":"#REF!"}},{"$f":"COUNTIF('Saisie Planning Production'!#REF!,\"=PM\")","v":{"$error":"#REF!"}},{"$f":"COUNTIF('Saisie Planning Production'!#REF!,\"=PM\")","v":{"$error":"#REF!"}},{"$f":"COUNTIF('Saisie Planning Production'!#REF!,\"=PM\")","v":{"$error":"#REF!"}},{"$f":"COUNTIF('Saisie Planning Production'!#REF!,\"=PM\")","v":{"$error":"#REF!"}},{"$f":"COUNTIF('Saisie Planning Production'!#REF!,\"=PM\")","v":{"$error":"#REF!"}},{"$f":"COUNTIF('Saisie Planning Production'!#REF!,\"=PM\")","v":{"$error":"#REF!"}},{"$f":"COUNTIF('Saisie Planning Production'!#REF!,\"=PM\")","v":{"$error":"#REF!"}},{"$f":"COUNTIF('Saisie Planning Production'!#REF!,\"=PM\")","v":{"$error":"#REF!"}},{"$f":"COUNTIF('Saisie Planning Production'!#REF!,\"=PM\")","v":{"$error":"#REF!"}},{"$f":"COUNTIF('Saisie Planning Production'!#REF!,\"=PM\")","v":{"$error":"#REF!"}},{"$f":"COUNTIF('Saisie Planning Production'!#REF!,\"=PM\")","v":{"$error":"#REF!"}},{"$f":"COUNTIF('Saisie Planning Production'!#REF!,\"=PM\")","v":{"$error":"#REF!"}},{"$f":"COUNTIF('Saisie Planning Production'!#REF!,\"=PM\")","v":{"$error":"#REF!"}},{"$f":"COUNTIF('Saisie Planning Production'!#REF!,\"=PM\")","v":{"$error":"#REF!"}},{"$f":"COUNTIF('Saisie Planning Production'!#REF!,\"=PM\")","v":{"$error":"#REF!"}},{"$f":"COUNTIF('Saisie Planning Production'!#REF!,\"=PM\")","v":{"$error":"#REF!"}},{"$f":"COUNTIF('Saisie Planning Production'!#REF!,\"=PM\")","v":{"$error":"#REF!"}},{"$f":"COUNTIF('Saisie Planning Production'!#REF!,\"=PM\")","v":{"$error":"#REF!"}},{"$f":"COUNTIF('Saisie Planning Production'!#REF!,\"=PM\")","v":{"$error":"#REF!"}},{"$f":"COUNTIF('Saisie Planning Production'!#REF!,\"=PM\")","v":{"$error":"#REF!"}},{"$f":"COUNTIF('Saisie Planning Production'!#REF!,\"=PM\")","v":{"$error":"#REF!"}},{"$f":"COUNTIF('Saisie Planning Production'!#REF!,\"=PM\")","v":{"$error":"#REF!"}}]
["BV",null,"Bignouf",{"$f":"COUNTIF('Saisie Planning Production'!$L$6:$L$69,\"=BV\")","v":7},{"$f":"COUNTIF('Saisie Planning Production'!#REF!,\"=BV\")","v":{"$error":"#REF!"}},{"$f":"COUNTIF('Saisie Planning Production'!#REF!,\"=BV\")","v":{"$error":"#REF!"}},{"$f":"COUNTIF('Saisie Planning Production'!#REF!,\"=BV\")","v":{"$error":"#REF!"}},{"$f":"COUNTIF('Saisie Planning Production'!#REF!,\"=BV\")","v":{"$error":"#REF!"}},{"$f":"COUNTIF('Saisie Planning Production'!#REF!,\"=BV\")","v":{"$error":"#REF!"}},{"$f":"COUNTIF('Saisie Planning Production'!#REF!,\"=BV\")","v":{"$error":"#REF!"}},{"$f":"COUNTIF('Saisie Planning Production'!#REF!,\"=BV\")","v":{"$error":"#REF!"}},{"$f":"COUNTIF('Saisie Planning Production'!#REF!,\"=BV\")","v":{"$error":"#REF!"}},{"$f":"COUNTIF('Saisie Planning Production'!#REF!,\"=BV\")","v":{"$error":"#REF!"}},{"$f":"COUNTIF('Saisie Planning Production'!#REF!,\"=BV\")","v":{"$error":"#REF!"}},{"$f":"COUNTIF('Saisie Planning Production'!#REF!,\"=BV\")","v":{"$error":"#REF!"}},{"$f":"COUNTIF('Saisie Planning Production'!#REF!,\"=BV\")","v":{"$error":"#REF!"}},{"$f":"COUNTIF('Saisie Planning Production'!#REF!,\"=BV\")","v":{"$error":"#REF!"}},{"$f":"COUNTIF('Saisie Planning Production'!#REF!,\"=BV\")","v":{"$error":"#REF!"}},{"$f":"COUNTIF('Saisie Planning Production'!#REF!,\"=BV\")","v":{"$error":"#REF!"}},{"$f":"COUNTIF('Saisie Planning Production'!#REF!,\"=BV\")","v":{"$error":"#REF!"}},{"$f":"COUNTIF('Saisie Planning Production'!#REF!,\"=BV\")","v":{"$error":"#REF!"}},{"$f":"COUNTIF('Saisie Planning Production'!#REF!,\"=BV\")","v":{"$error":"#REF!"}},{"$f":"COUNTIF('Saisie Planning Production'!#REF!,\"=BV\")","v":{"$error":"#REF!"}},{"$f":"COUNTIF('Saisie Planning Production'!#REF!,\"=BV\")","v":{"$error":"#REF!"}},{"$f":"COUNTIF('Saisie Planning Production'!#REF!,\"=BV\")","v":{"$error":"#REF!"}},{"$f":"COUNTIF('Saisie Planning Production'!#REF!,\"=BV\")","v":{"$error":"#REF!"}},{"$f":"COUNTIF('Saisie Planning Production'!#REF!,\"=BV\")","v":{"$error":"#REF!"}},{"$f":"COUNTIF('Saisie Planning Production'!#REF!,\"=BV\")","v":{"$error":"#REF!"}},{"$f":"COUNTIF('Saisie Planning Production'!#REF!,\"=BV\")","v":{"$error":"#REF!"}},{"$f":"COUNTIF('Saisie Planning Production'!#REF!,\"=BV\")","v":{"$error":"#REF!"}},{"$f":"COUNTIF('Saisie Planning Production'!#REF!,\"=BV\")","v":{"$error":"#REF!"}},{"$f":"COUNTIF('Saisie Planning Production'!#REF!,\"=BV\")","v":{"$error":"#REF!"}},{"$f":"COUNTIF('Saisie Planning Production'!#REF!,\"=BV\")","v":{"$error":"#REF!"}},{"$f":"COUNTIF('Saisie Planning Production'!#REF!,\"=BV\")","v":{"$error":"#REF!"}},{"$f":"COUNTIF('Saisie Planning Production'!#REF!,\"=BV\")","v":{"$error":"#REF!"}},{"$f":"COUNTIF('Saisie Planning Production'!#REF!,\"=BV\")","v":{"$error":"#REF!"}},{"$f":"COUNTIF('Saisie Planning Production'!#REF!,\"=BV\")","v":{"$error":"#REF!"}},{"$f":"COUNTIF('Saisie Planning Production'!#REF!,\"=BV\")","v":{"$error":"#REF!"}},{"$f":"COUNTIF('Saisie Planning Production'!#REF!,\"=BV\")","v":{"$error":"#REF!"}},{"$f":"COUNTIF('Saisie Planning Production'!#REF!,\"=BV\")","v":{"$error":"#REF!"}},{"$f":"COUNTIF('Saisie Planning Production'!#REF!,\"=BV\")","v":{"$error":"#REF!"}},{"$f":"COUNTIF('Saisie Planning Production'!#REF!,\"=BV\")","v":{"$error":"#REF!"}},{"$f":"COUNTIF('Saisie Planning Production'!#REF!,\"=BV\")","v":{"$error":"#REF!"}},{"$f":"COUNTIF('Saisie Planning Production'!#REF!,\"=BV\")","v":{"$error":"#REF!"}},{"$f":"COUNTIF('Saisie Planning Production'!#REF!,\"=BV\")","v":{"$error":"#REF!"}},{"$f":"COUNTIF('Saisie Planning Production'!#REF!,\"=BV\")","v":{"$error":"#REF!"}},{"$f":"COUNTIF('Saisie Planning Production'!#REF!,\"=BV\")","v":{"$error":"#REF!"}},{"$f":"COUNTIF('Saisie Planning Production'!#REF!,\"=BV\")","v":{"$error":"#REF!"}},{"$f":"COUNTIF('Saisie Planning Production'!#REF!,\"=BV\")","v":{"$error":"#REF!"}},{"$f":"COUNTIF('Saisie Planning Production'!#REF!,\"=BV\")","v":{"$error":"#REF!"}},{"$f":"COUNTIF('Saisie Planning Production'!#REF!,\"=BV\")","v":{"$error":"#REF!"}},{"$f":"COUNTIF('Saisie Planning Production'!#REF!,\"=BV\")","v":{"$error":"#REF!"}},{"$f":"COUNTIF('Saisie Planning Production'!#REF!,\"=BV\")","v":{"$error":"#REF!"}},{"$f":"COUNTIF('Saisie Planning Production'!#REF!,\"=BV\")","v":{"$error":"#REF!"}},{"$f":"COUNTIF('Saisie Planning Production'!#REF!,\"=BV\")","v":{"$error":"#REF!"}}]

{"sheet":"Saisie Planning Production","index":2,"n_rows":69,"n_cols":12,"rows_kept":69,"cut":false,"hidden":false,"merged":[[1,1,1,3],[1,4,1,10]]}
[]
[null,"Planning - prévision pour 2016 NPDC",null,null,1]
[null,null,null,null,"Lundi","Mardi","Mercredi","Jeudi","Vendredi","Samedi","Dimanche","Code_Rech"]
[null,"NOMS PRENOMS","Affectation","Service de ","2016-01-04",{"$f":"+E4+1","v":"2016-01-05"},{"$f":"+F4+1","v":"2016-01-06"},"2016-01-07","2016-01-08",{"$f":"+I4+1","v":"2016-01-09"},"2016-01-10"]
[null,"PRODUCTION"]
[1,"Salarié 1","Chantier",null,"PM - Orange Amiens","PM - Orange Amiens","PM - Orange Amiens","PM - Orange Amiens","PM - Orange Amiens",null,null,{"$f":"LEFT(INDEX(E6:K6,MATCH(MAX(COUNTIF(E6:K6,E6:K6)),COUNTIF(E6:K6,E6:K6),0)),2)","v":"PM"}]
[2,"Salarié 2","Chantier",null,"PF - Umicore","PF - Umicore","PF - Umicore","PF - Umicore","PF - Umicore",null,null,{"$f":"LEFT(INDEX(E7:K7,MATCH(MAX(COUNTIF(E7:K7,E7:K7)),COUNTIF(E7:K7,E7:K7),0)),2)","v":"PF"}]
[3,"Salarié 3","Chantier",null,"SL - UMV","SL - UMV","SL - UMV","SL - UMV","SL - UMV",null,null,{"$f":"LEFT(INDEX(E8:K8,MATCH(MAX(COUNTIF(E8:K8,E8:K8)),COUNTIF(E8:K8,E8:K8),0)),2)","v":"SL"}]
[4,"Salarié 4","Chantier",null,"LM - Vallourec","LM - Vallourec","LM - Vallourec","LM - Vallourec","LM - Vallourec",null,null,{"$f":"LEFT(INDEX(E9:K9,MATCH(MAX(COUNTIF(E9:K9,E9:K9)),COUNTIF(E9:K9,E9:K9),0)),2)","v":"LM"}]
[5,"Salarié 5","Chantier",null,"BV - AREVA","BV - AREVA","BV - AREVA","BV - AREVA","BV - AREVA",null,null,{"$f":"LEFT(INDEX(E10:K10,MATCH(MAX(COUNTIF(E10:K10,E10:K10)),COUNTIF(E10:K10,E10:K10),0)),2)","v":"BV"}]
[6,"Salarié 6","Chantier",null,"AM","AM","AM","AM","AM",null,null,{"$f":"LEFT(INDEX(E11:K11,MATCH(MAX(COUNTIF(E11:K11,E11:K11)),COUNTIF(E11:K11,E11:K11),0)),2)","v":"AM"}]
[7,"Salarié 7","Chantier",null,"PF - AGC","PF - AGC","PF - AGC","PF - AGC","PF - AGC",null,null,{"$f":"LEFT(INDEX(E12:K12,MATCH(MAX(COUNTIF(E12:K12,E12:K12)),COUNTIF(E12:K12,E12:K12),0)),2)","v":"PF"}]
[8,"Salarié 8","Chantier",null,"PF - AGC","PF - AGC","PF - AGC","RTT","PF - AGC",null,null,{"$f":"LEFT(INDEX(E13:K13,MATCH(MAX(COUNTIF(E13:K13,E13:K13)),COUNTIF(E13:K13,E13:K13),0)),2)","v":"PF"}]
[9,"Salarié 9","Chantier",null,"LM - Vallourec","LM - Vallourec","LM - Vallourec","LM - Vallourec","LM - Vallourec",null,null,{"$f":"LEFT(INDEX(E14:K14,MATCH(MAX(COUNTIF(E14:K14,E14:K14)),COUNTIF(E14:K14,E14:K14),0)),2)","v":"LM"}]
[10,"Salarié 10","Chantier",null,"PM - ORANGE UPR","PM - ORANGE UPR","PM - ORANGE UPR","PM - ORANGE UPR","PM - ORANGE UPR",null,null,{"$f":"LEFT(INDEX(E15:K15,MATCH(MAX(COUNTIF(E15:K15,E15:K15)),COUNTIF(E15:K15,E15:K15),0)),2)","v":"PM"}]
[11,"Salarié 11","Chantier",null,"SL - UMV","SL - UMV","SL - UMV","SL - UMV","SL - UMV",null,null,{"$f":"LEFT(INDEX(E16:K16,MATCH(MAX(COUNTIF(E16:K16,E16:K16)),COUNTIF(E16:K16,E16:K16),0)),2)","v":"SL"}]
[12,"Salarié 12","Chantier",null,"NP - INP1","NP - INP1","NP - INP1","NP - INP1","NP - INP1",null,null,{"$f":"LEFT(INDEX(E17:K17,MATCH(MAX(COUNTIF(E17:K17,E17:K17)),COUNTIF(E17:K17,E17:K17),0)),2)","v":"NP"}]
[13,"Salarié 13","Chantier",null,"SL - UMV","SL - UMV","SL - UMV","SL - UMV","SL - UMV",null,null,{"$f":"LEFT(INDEX(E18:K18,MATCH(MAX(COUNTIF(E18:K18,E18:K18)),COUNTIF(E18:K18,E18:K18),0)),2)","v":"SL"}]
[14,"Salarié 14","Chantier",null,"BV - SEVELNORD","BV - SEVELNORD","BV - SEVELNORD","BV - SEVELNORD","BV - SEVELNORD",null,null,{"$f":"LEFT(INDEX(E19:K19,MATCH(MAX(COUNTIF(E19:K19,E19:K19)),COUNTIF(E19:K19,E19:K19),0)),2)","v":"BV"}]
[15,"Salarié 15","Chantier",null,"PM - ORANGE UPR","PM - ORANGE UPR","PM - ORANGE UPR","PM - ORANGE UPR","PM - ORANGE UPR",null,null,{"$f":"LEFT(INDEX(E20:K20,MATCH(MAX(COUNTIF(E20:K20,E20:K20)),COUNTIF(E20:K20,E20:K20),0)),2)","v":"PM"}]
[16,"Salarié 16","Chantier",null,"LM - Vallourec","LM - Vallourec","LM - Vallourec","LM - Vallourec","LM - Vallourec",null,null,{"$f":"LEFT(INDEX(E21:K21,MATCH(MAX(COUNTIF(E21:K21,E21:K21)),COUNTIF(E21:K21,E21:K21),0)),2)","v":"LM"}]
[17,"Salarié 17","Chantier",null,"AM","AM","AM","AM","AM",null,null,{"$f":"LEFT(INDEX(E22:K22,MATCH(MAX(COUNTIF(E22:K22,E22:K22)),COUNTIF(E22:K22,E22:K22),0)),2)","v":"AM"}]
[18,"Salarié 18","Chantier",null,"LM - UGB","LM - UGB","LM - UGB","LM - UGB","LM - UGB",null,null,{"$f":"LEFT(INDEX(E23:K23,MATCH(MAX(COUNTIF(E23:K23,E23:K23)),COUNTIF(E23:K23,E23:K23),0)),2)","v":"LM"}]
[19,"Salarié 19","Chantier",null,"RTT","52M","52M","52M","52M",null,null,{"$f":"LEFT(INDEX(E24:K24,MATCH(MAX(COUNTIF(E24:K24,E24:K24)),COUNTIF(E24:K24,E24:K24),0)),2)","v":"52"}]
[20,"Salarié 20","Chantier",null,"AM","AM","AM","AM","AM",null,null,{"$f":"LEFT(INDEX(E25:K25,MATCH(MAX(COUNTIF(E25:K25,E25:K25)),COUNTIF(E25:K25,E25:K25),0)),2)","v":"AM"}]
[21,"Salarié 21","Chantier",null,"52M","52M","52M","52M","52M",null,null,{"$f":"LEFT(INDEX(E26:K26,MATCH(MAX(COUNTIF(E26:K26,E26:K26)),COUNTIF(E26:K26,E26:K26),0)),2)","v":"52"}]
[22,"Salarié 22","Chantier",null,"SB","SB","SB","SB","SB",null,null,{"$f":"LEFT(INDEX(E27:K27,MATCH(MAX(COUNTIF(E27:K27,E27:K27)),COUNTIF(E27:K27,E27:K27),0)),2)","v":"SB"}]
[23,"Salarié 23","Chantier",null,"PM - ORANGE UPR","PM - ORANGE UPR","PM - ORANGE UPR","PM - ORANGE UPR","PM - ORANGE UPR",null,null,{"$f":"LEFT(INDEX(E28:K28,MATCH(MAX(COUNTIF(E28:K28,E28:K28)),COUNTIF(E28:K28,E28:K28),0)),2)","v":"PM"}]
[24,"Salarié 24","Chantier",null,"BV - DASSAULT","BV - DASSAULT","BV - DASSAULT","BV - DASSAULT","BV - DASSAULT",null,null,{"$f":"LEFT(INDEX(E29:K29,MATCH(MAX(COUNTIF(E29:K29,E29:K29)),COUNTIF(E29:K29,E29:K29),0)),2)","v":"BV"}]
[25,"Salarié 25","Chantier",null,"PF - AGC","PF - AGC","PF - AGC","PF - AGC","PF - AGC",null,null,{"$f":"LEFT(INDEX(E30:K30,MATCH(MAX(COUNTIF(E30:K30,E30:K30)),COUNTIF(E30:K30,E30:K30),0)),2)","v":"PF"}]
[26,"Salarié 26","Chantier",null,"CP","RTT","PM - Orange Amiens","PM - Orange Amiens","PM - Orange Amiens",null,null,{"$f":"LEFT(INDEX(E31:K31,MATCH(MAX(COUNTIF(E31:K31,E31:K31)),COUNTIF(E31:K31,E31:K31),0)),2)","v":"PM"}]
[27,"Salarié 27","Chantier",null,"LL - BRIDGESTONE","LL - BRIDGESTONE","LL - BRIDGESTONE","LL - BRIDGESTONE","LL - BRIDGESTONE",null,null,{"$f":"LEFT(INDEX(E32:K32,MATCH(MAX(COUNTIF(E32:K32,E32:K32)),COUNTIF(E32:K32,E32:K32),0)),2)","v":"LL"}]
[28,"Salarié 28","Chantier",null,"LM - UGB","LM - UGB","LM - UGB","LM - UGB","LM - UGB",null,null,{"$f":"LEFT(INDEX(E33:K33,MATCH(MAX(COUNTIF(E33:K33,E33:K33)),COUNTIF(E33:K33,E33:K33),0)),2)","v":"LM"}]
[29,"Salarié 29","Chantier",null,"BV","BV","BV","BV","BV",null,null,{"$f":"LEFT(INDEX(E34:K34,MATCH(MAX(COUNTIF(E34:K34,E34:K34)),COUNTIF(E34:K34,E34:K34),0)),2)","v":"BV"}]
[30,"Salarié 30","Chantier",null,null,null,null,null,null,null,null,{"$f":"LEFT(INDEX(E35:K35,MATCH(MAX(COUNTIF(E35:K35,E35:K35)),COUNTIF(E35:K35,E35:K35),0)),2)","v":""}]
[31,"Salarié 31","Chantier",null,"52M","52M","52M","52M","52M",null,null,{"$f":"LEFT(INDEX(E36:K36,MATCH(MAX(COUNTIF(E36:K36,E36:K36)),COUNTIF(E36:K36,E36:K36),0)),2)","v":"52"}]
[32,"Salarié 32","Chantier",null,"PF - AGC","PF - AGC","PF - AGC","PF - AGC","PF - AGC",null,null,{"$f":"LEFT(INDEX(E37:K37,MATCH(MAX(COUNTIF(E37:K37,E37:K37)),COUNTIF(E37:K37,E37:K37),0)),2)","v":"PF"}]
[33,"Salarié 33","Chantier",null,"PF - AGC","PF - AGC","PF - AGC","PF - AGC","PF - AGC",null,null,{"$f":"LEFT(INDEX(E38:K38,MATCH(MAX(COUNTIF(E38:K38,E38:K38)),COUNTIF(E38:K38,E38:K38),0)),2)","v":"PF"}]
[34,"Salarié 34","Chantier",null,"LM - UGB","LM - UGB","LM - UGB","LM - UGB","LM - UGB",null,null,{"$f":"LEFT(INDEX(E39:K39,MATCH(MAX(COUNTIF(E39:K39,E39:K39)),COUNTIF(E39:K39,E39:K39),0)),2)","v":"LM"}]
[35,"Salarié 35","Chantier",null,"PF","PF","PF","PF","PF",null,null,{"$f":"LEFT(INDEX(E40:K40,MATCH(MAX(COUNTIF(E40:K40,E40:K40)),COUNTIF(E40:K40,E40:K40),0)),2)","v":"PF"}]
[36,"Salarié 36","Chantier",null,"PF - ALLEVARD","PF - ALLEVARD","PF - ALLEVARD","PF - ALLEVARD","PF - ALLEVARD",null,null,{"$f":"LEFT(INDEX(E41:K41,MATCH(MAX(COUNTIF(E41:K41,E41:K41)),COUNTIF(E41:K41,E41:K41),0)),2)","v":"PF"}]
[37,"Salarié 37","Chantier",null,"52M","52M","52M","52M","52M",null,null,{"$f":"LEFT(INDEX(E42:K42,MATCH(MAX(COUNTIF(E42:K42,E42:K42)),COUNTIF(E42:K42,E42:K42),0)),2)","v":"52"}]
[38,"Salarié 38","Chantier",null,"SL - FM","SL - FM","SL - FM","SL - FM","SL - FM",null,null,{"$f":"LEFT(INDEX(E43:K43,MATCH(MAX(COUNTIF(E43:K43,E43:K43)),COUNTIF(E43:K43,E43:K43),0)),2)","v":"SL"}]
[39,"Salarié 39","Chantier",null,"CP","RTT","RTT","RTT","RTT",null,null,{"$f":"LEFT(INDEX(E44:K44,MATCH(MAX(COUNTIF(E44:K44,E44:K44)),COUNTIF(E44:K44,E44:K44),0)),2)","v":"RT"}]
[40,"Salarié 40","Chantier",null,"LM - UGB","LM - UGB","LM - UGB","LM - UGB","LM - UGB",null,null,{"$f":"LEFT(INDEX(E45:K45,MATCH(MAX(COUNTIF(E45:K45,E45:K45)),COUNTIF(E45:K45,E45:K45),0)),2)","v":"LM"}]
[41,"Salarié 41","Chantier",null,null,null,null,null,null,null,null,{"$f":"LEFT(INDEX(E46:K46,MATCH(MAX(COUNTIF(E46:K46,E46:K46)),COUNTIF(E46:K46,E46:K46),0)),2)","v":""}]
[42,"Salarié 42","Chantier",null,"PM - ORANGE UPR","PM - ORANGE UPR","PM - ORANGE UPR","PM - ORANGE UPR","PM - ORANGE UPR",null,null,{"$f":"LEFT(INDEX(E47:K47,MATCH(MAX(COUNTIF(E47:K47,E47:K47)),COUNTIF(E47:K47,E47:K47),0)),2)","v":"PM"}]
[43,"Salarié 43","Chantier",null,"BV - AREVA","BV - AREVA","BV - AREVA","BV - AREVA","BV - AREVA",null,null,{"$f":"LEFT(INDEX(E48:K48,MATCH(MAX(COUNTIF(E48:K48,E48:K48)),COUNTIF(E48:K48,E48:K48),0)),2)","v":"BV"}]
[44,"Salarié 44","Chantier",null,"LM - UGB","LM - UGB","LM - UGB","LM - UGB","LM - UGB",null,null,{"$f":"LEFT(INDEX(E49:K49,MATCH(MAX(COUNTIF(E49:K49,E49:K49)),COUNTIF(E49:K49,E49:K49),0)),2)","v":"LM"}]
[45,"Salarié 45","Chantier",null,"BV - AREVA","BV - AREVA","BV - AREVA","BV - AREVA","BV - AREVA",null,null,{"$f":"LEFT(INDEX(E50:K50,MATCH(MAX(COUNTIF(E50:K50,E50:K50)),COUNTIF(E50:K50,E50:K50),0)),2)","v":"BV"}]
[46,"Salarié 46","Chantier",null,"LL - BRIDGESTONE","LL - BRIDGESTONE","LL - BRIDGESTONE","LL - BRIDGESTONE","LL - BRIDGESTONE",null,null,{"$f":"LEFT(INDEX(E51:K51,MATCH(MAX(COUNTIF(E51:K51,E51:K51)),COUNTIF(E51:K51,E51:K51),0)),2)","v":"LL"}]
[47,"Salarié 47","Chantier",null,"PM - ORANGE OLE","PM - ORANGE OLE","PM - ORANGE OLE","PM - ORANGE OLE","PM - ORANGE OLE",null,null,{"$f":"LEFT(INDEX(E52:K52,MATCH(MAX(COUNTIF(E52:K52,E52:K52)),COUNTIF(E52:K52,E52:K52),0)),2)","v":"PM"}]
[48,"Salarié 48","Chantier",null,"AM","AM","AM","AM","AM",null,null,{"$f":"LEFT(INDEX(E53:K53,MATCH(MAX(COUNTIF(E53:K53,E53:K53)),COUNTIF(E53:K53,E53:K53),0)),2)","v":"AM"}]
[49,"Salarié 49","Chantier",null,"PF - ALLEVARD","PF - ALLEVARD","PF - ALLEVARD","PF - ALLEVARD","PF - ALLEVARD",null,null,{"$f":"LEFT(INDEX(E54:K54,MATCH(MAX(COUNTIF(E54:K54,E54:K54)),COUNTIF(E54:K54,E54:K54),0)),2)","v":"PF"}]
[50,"Salarié 50","Chantier",null,"PF - AGC","PF - AGC","PF - AGC","PF - AGC","PF - AGC",null,null,{"$f":"LEFT(INDEX(E55:K55,MATCH(MAX(COUNTIF(E55:K55,E55:K55)),COUNTIF(E55:K55,E55:K55),0)),2)","v":"PF"}]
[51,"Salarié 51","Chantier",null,"LM - Vallourec","LM - Vallourec","LM - Vallourec","LM - Vallourec","LM - Vallourec",null,null,{"$f":"LEFT(INDEX(E56:K56,MATCH(MAX(COUNTIF(E56:K56,E56:K56)),COUNTIF(E56:K56,E56:K56),0)),2)","v":"LM"}]
[52,"Salarié 52","Chantier",null,"SL - FM","SL - FM","SL - FM","SL - FM","SL - FM",null,null,{"$f":"LEFT(INDEX(E57:K57,MATCH(MAX(COUNTIF(E57:K57,E57:K57)),COUNTIF(E57:K57,E57:K57),0)),2)","v":"SL"}]
[53,"Salarié 53","Chantier",null,"PM - ORANGE UPR","PM - ORANGE UPR","PM - ORANGE UPR","PM - ORANGE UPR","PM - ORANGE UPR",null,null,{"$f":"LEFT(INDEX(E58:K58,MATCH(MAX(COUNTIF(E58:K58,E58:K58)),COUNTIF(E58:K58,E58:K58),0)),2)","v":"PM"}]
[54,"Salarié 54","Chantier",null,"CP","CP","CP","CP","CP",null,null,{"$f":"LEFT(INDEX(E59:K59,MATCH(MAX(COUNTIF(E59:K59,E59:K59)),COUNTIF(E59:K59,E59:K59),0)),2)","v":"CP"}]
[55,"Salarié 55","Chantier",null,"DEL","DEL","CP","CP","CP",null,null,{"$f":"LEFT(INDEX(E60:K60,MATCH(MAX(COUNTIF(E60:K60,E60:K60)),COUNTIF(E60:K60,E60:K60),0)),2)","v":"CP"}]
[56,"Salarié 56","Chantier",null,"52M","52M","52M","52M","52M",null,null,{"$f":"LEFT(INDEX(E61:K61,MATCH(MAX(COUNTIF(E61:K61,E61:K61)),COUNTIF(E61:K61,E61:K61),0)),2)","v":"52"}]
[57,"Salarié 57","Chantier",null,"PF - SITA SCORI","PF - SITA SCORI","PF - SITA SCORI","PF - SITA SCORI","PF - SITA SCORI",null,null,{"$f":"LEFT(INDEX(E62:K62,MATCH(MAX(COUNTIF(E62:K62,E62:K62)),COUNTIF(E62:K62,E62:K62),0)),2)","v":"PF"}]
[58,"Salarié 58","Chantier",null,"BV - SEVELNORD","BV - SEVELNORD","BV - SEVELNORD","BV - SEVELNORD","BV - SEVELNORD",null,null,{"$f":"LEFT(INDEX(E63:K63,MATCH(MAX(COUNTIF(E63:K63,E63:K63)),COUNTIF(E63:K63,E63:K63),0)),2)","v":"BV"}]
[59,"Salarié 59","Chantier",null,"NP - INP1","NP - INP1","NP - INP1","NP - INP1","NP - INP1",null,null,{"$f":"LEFT(INDEX(E64:K64,MATCH(MAX(COUNTIF(E64:K64,E64:K64)),COUNTIF(E64:K64,E64:K64),0)),2)","v":"NP"}]
[60,"Salarié 60","Chantier",null,"PF - ALLEVARD","PF - ALLEVARD","PF - ALLEVARD","PF - ALLEVARD","PF - ALLEVARD",null,null,{"$f":"LEFT(INDEX(E65:K65,MATCH(MAX(COUNTIF(E65:K65,E65:K65)),COUNTIF(E65:K65,E65:K65),0)),2)","v":"PF"}]
[61,"Salarié 61",null,null,null,null,null,null,null,null,null,{"$f":"LEFT(INDEX(E66:K66,MATCH(MAX(COUNTIF(E66:K66,E66:K66)),COUNTIF(E66:K66,E66:K66),0)),2)","v":""}]
[62,"Salarié 62",null,null,null,null,null,null,null,null,null,{"$f":"LEFT(INDEX(E67:K67,MATCH(MAX(COUNTIF(E67:K67,E67:K67)),COUNTIF(E67:K67,E67:K67),0)),2)","v":""}]
[63,"Salarié 63",null,null,null,null,null,null,null,null,null,{"$f":"LEFT(INDEX(E68:K68,MATCH(MAX(COUNTIF(E68:K68,E68:K68)),COUNTIF(E68:K68,E68:K68),0)),2)","v":""}]
[64,null,null,null,null,null,null,null,null,null,null,{"$f":"LEFT(INDEX(E69:K69,MATCH(MAX(COUNTIF(E69:K69,E69:K69)),COUNTIF(E69:K69,E69:K69),0)),2)","v":""}]